bitfinex/quotes_SOLUSD_20250722
["timestamp","ask_amount","ask_price","bid_price","bid_amount"]
[1753160118962,11.2239724,195.29,195.24,11.2239724]
[1753160119250,11.2239724,195.3,195.25,0.7]
[1753160119455,0.68,195.37,195.29,11.2239724]
[1753160119647,11.2239724,195.35,195.3,5.1203277]
[1753160119837,0.68,195.37,195.3,16.3443001]
[1753160120355,0.68,195.41,195.31,11.2239724]
[1753160120551,11.2239724,195.38,195.32,11.2239724]
[1753160120759,11.2239724,195.37,195.31,11.2239724]
[1753160121057,11.2239724,195.38,195.32,11.2239724]
[1753160121269,11.2239724,195.33,195.26,5.12118662]
[1753160121559,11.2239724,195.29,195.23,0.03]
[1753160121733,0.68,195.32,195.23,0.03]
[1753160121734,11.2239724,195.26,195.23,0.03]
[1753160122352,0.68,195.29,195.23,0.03]
[1753160122534,5.80065415,195.29,195.23,0.03]
[1753160122745,11.2239724,195.26,195.23,0.03]
[1753160122935,11.2239724,195.25,195.23,0.03]
[1753160123131,6.1453,195.29,195.23,0.03]
[1753160123449,11.2239724,195.24,195.23,0.03]
[1753160123759,0.68,195.28,195.23,0.03]
[1753160123760,11.2239724,195.25,195.23,0.03]
[1753160124136,5.12109629,195.28,195.23,0.03]
[1753160124137,11.9039724,195.24,195.23,0.03]
[1753160124548,5.12109629,195.28,195.23,0.03]
[1753160124846,0.68,195.28,195.23,0.03]
[1753160125162,11.2239724,195.26,195.23,0.03]
[1753160125362,5.12086221,195.28,195.23,0.03]
[1753160125363,11.2239724,195.25,195.23,0.03]
[1753160125658,11.2239724,195.26,195.23,0.03]
[1753160125861,11.2239724,195.25,195.23,0.03]
[1753160126764,0.68,195.35,195.24,11.9239724]
[1753160126941,11.2239724,195.33,195.27,11.2239724]
[1753160127342,11.2239724,195.33,195.23,39.69]
[1753160127343,11.2239724,195.28,195.23,0.03]
[1753160127536,11.2239724,195.26,195.23,0.03]
[1753160127851,16.3453901,195.26,195.23,0.03]
[1753160128038,5.12116588,195.27,195.23,0.03]
[1753160128239,11.2239724,195.26,195.23,0.03]
[1753160128841,5.80116588,195.27,195.23,0.03]
[1753160128842,11.2239724,195.24,195.23,0.03]
[1753160129150,11.2239724,195.24,195.06,238.3055]
[1753160129151,11.2239724,195.24,195.06,236.8]
[1753160129350,11.2239724,195.2,195.05,0.7]
[1753160129561,11.2239724,195.13,195.04,12.81788351]
[1753160129860,0.68,195.14,195.05,5.12689054]
[1753160130457,11.2239724,195.16,195.1,11.2239724]
[1753160130639,11.2239724,195.15,195.09,11.2239724]
[1753160130835,0.68,195.18,195.1,11.2239724]
[1753160131044,5.80287313,195.21,195.12,11.2239724]
[1753160131448,11.2239724,195.18,195.09,0.7]
[1753160131865,11.2239724,195.17,195.11,11.2239724]
[1753160132037,11.2239724,195.16,195.1,5.12539868]
[1753160132363,11.2239724,195.17,195.1,5.12539868]
[1753160132565,26.0,195.23,195.1,5.12539868]
[1753160132566,2.53728902,195.23,195.1,5.12539868]
[1753160132751,11.2239724,195.15,195.09,5.12580852]
[1753160132955,5.12242598,195.22,195.09,16.34978092]
[1753160132956,0.68,195.16,195.09,16.34978092]
[1753160133156,11.2239724,195.1,195.05,26.0]
[1753160133351,11.2239724,195.06,195.03,0.2]
[1753160133745,0.68,195.05,195.03,0.2]
[1753160133964,5.12505125,195.12,195.03,0.2]
[1753160134167,0.68,195.09,195.03,0.2]
[1753160134356,11.2239724,195.07,195.03,0.2]
[1753160134556,11.2239724,195.06,195.03,0.2]
[1753160134758,11.9039724,195.06,195.03,0.2]
[1753160134954,11.2239724,195.04,195.03,0.2]
[1753160135473,11.9039724,195.04,195.03,0.2]
[1753160135773,11.9039724,195.04,195.0,2.0]
[1753160135774,0.68,195.04,195.0,2.0]
[1753160136074,0.68,195.03,195.0,2.0]
[1753160136259,11.2239724,195.01,195.0,2.0]
[1753160136440,0.68,195.01,195.0,2.0]
[1753160136645,11.2239724,195.01,195.0,2.0]
[1753160136847,20.67113736,195.14,195.0,13.2239724]
[1753160137046,20.67113736,195.14,195.01,0.7]
[1753160137047,13.64823736,195.14,195.01,0.7]
[1753160137251,11.2239724,195.09,195.03,11.2239724]
[1753160137551,11.2239724,195.08,195.02,11.2239724]
[1753160137759,11.9039724,195.15,195.07,11.2239724]
[1753160138055,11.2239724,195.13,195.09,5.12579374]
[1753160138250,11.49602813,195.2,195.08,11.2239724]
[1753160138466,11.49602813,195.2,195.07,5.12611023]
[1753160138467,11.2239724,195.15,195.09,11.2239724]
[1753160138672,0.72,195.19,195.1,11.2239724]
[1753160138968,11.2239724,195.19,195.13,11.2239724]
[1753160139465,11.2239724,195.21,195.11,0.72]
[1753160139664,11.2239724,195.2,195.14,11.2239724]
[1753160139876,11.2239724,195.19,195.13,11.2239724]
[1753160140076,11.2239724,195.17,195.12,5.12480764]
[1753160140256,11.2239724,195.15,195.12,5.12480764]
[1753160140454,11.2239724,195.17,195.12,5.12480764]
[1753160140649,11.2239724,195.2,195.13,0.72]
[1753160140855,11.2239724,195.16,195.12,5.12480764]
[1753160141069,11.2239724,195.15,195.12,5.12480764]
[1753160141373,11.2239724,195.16,195.1,11.2239724]
[1753160141572,11.2239724,195.16,195.11,11.2239724]
[1753160141872,11.2239724,195.16,195.1,11.2239724]
[1753160142076,0.72,195.18,195.11,11.2239724]
[1753160142277,11.2239724,195.16,195.11,11.2239724]
[1753160142578,11.2239724,195.16,195.11,11.2539724]
[1753160142765,11.2239724,195.17,195.11,11.2539724]
[1753160143076,0.06,195.19,195.14,11.2239724]
[1753160143457,11.2839724,195.19,195.11,0.75]
[1753160143774,0.06,195.19,195.11,0.75]
[1753160143977,0.06,195.19,195.18,16.34744816]
[1753160144176,0.06,195.27,195.18,16.34744816]
[1753160144177,0.06,195.27,195.18,17.06744816]
[1753160144359,0.06,195.27,195.19,0.72]
[1753160144561,11.2239724,195.23,195.18,5.12347576]
[1753160144877,0.78,195.27,195.22,11.2239724]
[1753160144878,0.06,195.27,195.22,11.2239724]
[1753160145082,0.06,195.27,195.23,11.2239724]
[1753160145259,0.06,195.27,195.19,0.72]
[1753160145260,0.06,195.27,195.22,11.2239724]
[1753160145461,11.2239724,195.26,195.19,0.72]
[1753160145768,0.78,195.27,195.18,5.12347576]
[1753160145975,11.2239724,195.22,195.18,5.12347576]
[1753160146177,11.2239724,195.22,195.17,5.12373827]
[1753160146362,0.72,195.25,195.17,17.06771067]
[1753160146565,11.2239724,195.25,195.18,0.72]
[1753160146753,11.2239724,195.25,195.19,11.2239724]
[1753160146954,0.06,195.27,195.19,11.2239724]
[1753160147356,11.2239724,195.24,195.18,11.9439724]
[1753160147857,0.06,195.27,195.23,11.2239724]
[1753160148068,0.06,195.27,195.25,5.12163892]
[1753160148264,0.06,195.27,195.26,11.2239724]
[1753160148467,0.06,195.27,195.26,11.9439724]
[1753160148677,0.06,195.34,195.26,11.9439724]
[1753160148884,0.06,195.34,195.33,11.2239724]
[1753160149075,0.06,195.34,195.29,39.7]
[1753160149269,0.06,195.34,195.3,0.72]
[1753160149472,0.06,195.34,195.33,11.2239724]
[1753160150070,0.06,195.34,195.33,16.34351368]
[1753160150260,0.06,195.34,195.33,5.11954128]
[1753160150583,0.06,195.34,195.31,5.11981569]
[1753160150786,0.06,195.34,195.33,11.2239724]
[1753160152082,0.06,195.34,195.29,44.82040801]
[1753160152256,0.06,195.34,195.26,0.72]
[1753160152257,11.2239724,195.32,195.26,11.9439724]
[1753160152573,0.06,195.34,195.26,11.9439724]
[1753160152574,0.78,195.34,195.27,16.34483348]
[1753160152790,11.2239724,195.33,195.27,5.12086108]
[1753160152965,11.2839724,195.34,195.28,11.2239724]
[1753160153165,11.2239724,195.33,195.27,5.12086108]
[1753160153369,11.2239724,195.31,195.25,11.2239724]
[1753160153783,11.2239724,195.3,195.25,5.12163892]
[1753160154087,11.2239724,195.28,195.23,5.1221636]
[1753160154596,0.78,195.34,195.24,11.2239724]
[1753160154757,12.0039724,195.34,195.28,11.2239724]
[1753160154953,0.78,195.34,195.28,11.2239724]
[1753160155274,0.06,195.34,195.3,11.2239724]
[1753160155470,0.06,195.34,195.33,11.2239724]
[1753160155776,0.06,195.34,195.32,11.2239724]
[1753160156163,0.06,195.34,195.33,5.11954128]
[1753160156683,0.06,195.34,195.33,16.34351368]
[1753160157055,0.06,195.34,195.28,12.80164592]
[1753160157260,0.06,195.34,195.29,11.2239724]
[1753160157462,0.06,195.34,195.3,11.2239724]
[1753160157681,0.06,195.34,195.31,11.2239724]
[1753160157992,0.06,195.34,195.33,11.2239724]
[1753160158282,11.9439724,195.42,195.34,17.91747721]
[1753160158474,11.2239724,195.41,195.34,17.91747721]
[1753160158783,0.72,195.42,195.34,17.91747721]
[1753160158967,11.2239724,195.42,195.36,11.2239724]
[1753160159493,11.2239724,195.38,195.34,5.1192792]
[1753160159663,0.72,195.43,195.33,44.79949803]
[1753160159859,11.2239724,195.41,195.35,11.2239724]
[1753160160091,0.72,195.43,195.33,57.59835125]
[1753160160381,26.0,195.4,195.27,5.12111435]
[1753160160585,26.0,195.36,195.21,0.72]
[1753160160783,11.2239724,195.27,195.22,5.12242598]
[1753160160988,11.2239724,195.26,195.2,5.12295081]
[1753160161164,0.72,195.3,195.21,11.2239724]
[1753160161360,6.4789,195.37,195.27,11.2239724]
[1753160161361,0.72,195.34,195.27,11.2239724]
[1753160161576,13.35263053,195.43,195.33,11.2239724]
[1753160161889,11.2239724,195.37,195.31,11.2239724]
[1753160162076,11.2239724,195.34,195.28,11.2239724]
[1753160162388,11.2239724,195.34,195.28,16.34471055]
[1753160162686,11.2239724,195.36,195.28,5.12073815]
[1753160162887,11.2239724,195.43,195.35,11.2239724]
[1753160163189,11.2239724,195.43,195.35,0.72]
[1753160163370,11.9439724,195.44,195.38,11.2239724]
[1753160163692,11.2239724,195.41,195.35,11.2239724]
[1753160163979,5.83667878,195.44,195.29,11.2239724]
[1753160163980,11.2239724,195.36,195.29,11.2239724]
[1753160164182,11.2239724,195.34,195.28,5.12073815]
[1753160164389,11.2239724,195.34,195.28,16.34471055]
[1753160164682,11.2239724,195.33,195.28,5.12073815]
[1753160164984,11.2239724,195.37,195.31,11.2239724]
[1753160165362,50.9639724,195.44,195.29,0.72]
[1753160165363,0.72,195.45,195.35,26.0]
[1753160165764,16.33989267,195.47,195.36,0.72]
[1753160165965,0.72,195.47,195.42,11.2239724]
[1753160166224,0.06,195.49,195.45,11.2239724]
[1753160166364,0.1,195.5,195.48,11.2239724]
[1753160166564,0.1,195.5,195.49,11.2239724]
[1753160166960,0.1,195.5,195.46,0.72]
[1753160167179,0.1,195.5,195.46,11.2239724]
[1753160167488,0.1,195.5,195.47,11.9439724]
[1753160167889,0.1,195.5,195.43,39.78]
[1753160167890,0.1,195.5,195.44,5.11665465]
[1753160168100,0.1,195.5,195.45,11.2239724]
[1753160168480,11.2239724,195.47,195.43,39.78]
[1753160168777,11.2239724,195.46,195.4,11.2239724]
[1753160168973,5.9351046,195.5,195.41,11.2239724]
[1753160169298,11.2239724,195.47,195.41,11.2239724]
[1753160169467,5.9351046,195.5,195.39,5.1177523]
[1753160169468,11.2239724,195.48,195.42,11.2239724]
[1753160169787,11.2239724,195.47,195.39,5.1177523]
[1753160170008,5.9351046,195.5,195.36,5.11872398]
[1753160170009,11.2239724,195.41,195.36,5.11872398]
[1753160170207,0.72,195.41,195.35,16.34290555]
[1753160170374,11.2239724,195.42,195.35,5.11893315]
[1753160170579,0.72,195.45,195.35,5.11893315]
[1753160170797,11.2239724,195.42,195.35,5.11893315]
[1753160171003,0.72,195.45,195.35,5.11893315]
[1753160171300,11.2239724,195.48,195.36,0.66]
[1753160171478,11.2239724,195.47,195.41,11.2239724]
[1753160171680,11.2239724,195.45,195.39,11.2239724]
[1753160171904,0.72,195.47,195.36,0.66]
[1753160172092,11.2239724,195.44,195.38,11.2239724]
[1753160172292,11.2239724,195.44,195.35,5.11893315]
[1753160172293,11.2239724,195.4,195.33,5.11934093]
[1753160172501,11.2239724,195.43,195.37,11.2239724]
[1753160172804,11.2239724,195.45,195.39,11.2239724]
[1753160173022,11.2239724,195.45,195.4,11.2239724]
[1753160173302,0.1,195.5,195.44,11.2239724]
[1753160173303,11.3239724,195.5,195.44,11.2239724]
[1753160174212,0.1,195.5,195.49,11.2239724]
[1753160174395,0.1,195.5,195.49,16.99932356]
[1753160174592,0.06,195.53,195.49,29.78770148]
[1753160174796,0.06,195.53,195.52,11.2239724]
[1753160175093,0.06,195.59,195.52,67.70865637]
[1753160175404,0.06,195.62,195.58,11.2239724]
[1753160175612,0.06,195.62,195.6,11.2239724]
[1753160175994,0.06,195.62,195.6,11.8839724]
[1753160176390,0.06,195.62,195.6,16.99644683]
[1753160176588,0.06,195.62,195.6,5.11247443]
[1753160176792,0.06,195.62,195.6,16.33644683]
[1753160177513,0.06,195.62,195.59,44.8127169]
[1753160177716,0.06,195.62,195.6,11.2239724]
[1753160177897,0.06,195.62,195.6,11.8839724]
[1753160178290,0.06,195.62,195.6,16.99644683]
[1753160178602,1e-08,195.62,195.61,16.78468397]
[1753160178803,1e-08,195.62,195.61,28.66865637]
[1753160179913,1e-08,195.62,195.61,11.8839724]
[1753160180296,1e-08,195.62,195.61,16.99618547]
[1753160181327,1e-08,195.62,195.61,5.77221307]
[1753160181496,1e-08,195.62,195.61,16.99618547]
[1753160181994,0.06,195.72,195.69,11.2239724]
[1753160182199,0.06,195.72,195.71,11.2239724]
[1753160182507,0.06,195.72,195.71,5.10960094]
[1753160182818,0.06,195.72,195.71,16.99357334]
[1753160183300,1e-08,195.72,195.71,16.33357334]
[1753160184022,1e-08,195.72,195.71,16.99357334]
[1753160186540,1e-08,195.72,195.67,5.11064547]
[1753160186695,11.9439724,195.71,195.67,5.11064547]
[1753160186905,11.9439724,195.7,195.65,5.11094818]
[1753160187209,0.72,195.69,195.65,5.11094818]
[1753160187595,1e-08,195.72,195.68,11.2239724]
[1753160187798,11.2239724,195.69,195.63,16.33566283]
[1753160188026,11.9439724,195.68,195.63,5.11169043]
[1753160188339,0.72,195.67,195.63,5.11169043]
[1753160188500,0.72,195.67,195.63,16.33566283]
[1753160188829,0.72,195.67,195.63,5.11169043]
[1753160189011,11.9439724,195.67,195.63,5.11169043]
[1753160189523,11.9439724,195.66,195.63,5.11169043]
[1753160189696,11.2239724,195.64,195.59,5.11254285]
[1753160189897,0.72,195.67,195.6,11.2239724]
[1753160190108,0.72,195.67,195.59,44.69254285]
[1753160190109,11.9439724,195.67,195.61,11.2239724]
[1753160190605,0.72,195.67,195.62,16.33592414]
[1753160190814,11.2239724,195.68,195.62,16.33592414]
[1753160191020,0.72,195.7,195.63,50.8039724]
[1753160191225,11.9439724,195.7,195.64,11.2239724]
[1753160191602,1e-08,195.72,195.67,11.2239724]
[1753160191900,11.2239724,195.71,195.67,39.58]
[1753160192100,11.9439724,195.71,195.67,39.58]
[1753160192401,11.22397241,195.72,195.67,39.58]
[1753160192627,11.22397241,195.72,195.7,11.2239724]
[1753160192628,1e-08,195.72,195.7,11.2239724]
[1753160192802,1e-08,195.72,195.68,5.7703843]
[1753160192803,1e-08,195.72,195.71,51.4639724]
[1753160193003,1e-08,195.72,195.68,5.1103843]
[1753160193213,1e-08,195.72,195.69,39.58]
[1753160194233,1e-08,195.72,195.63,11.2239724]
[1753160194234,11.2239724,195.7,195.63,11.2239724]
[1753160194422,0.72,195.71,195.66,39.58]
[1753160194727,11.2239724,195.71,195.65,16.3351403]
[1753160195032,1e-08,195.72,195.67,11.2239724]
[1753160195211,11.2239724,195.68,195.65,39.58]
[1753160195526,11.2239724,195.66,195.55,11.9139724]
[1753160195732,11.2239724,195.62,195.56,55.91749254]
[1753160195921,11.2239724,195.67,195.61,11.2239724]
[1753160196100,0.72,195.69,195.62,11.2239724]
[1753160196300,11.2239724,195.67,195.62,11.2239724]
[1753160196527,11.2239724,195.68,195.63,5.11169043]
[1753160196823,11.2239724,195.7,195.64,11.2239724]
[1753160197015,11.2239724,195.65,195.57,11.2239724]
[1753160197215,11.2239724,195.6,195.58,39.58]
[1753160197409,26.0,195.69,195.55,5.1437657]
[1753160197611,11.2239724,195.59,195.55,5.1437657]
[1753160197807,11.2239724,195.6,195.55,5.1437657]
[1753160198002,0.72,195.63,195.55,5.1437657]
[1753160198421,11.2239724,195.59,195.55,5.1437657]
[1753160198612,11.9139724,195.59,195.55,0.03]
[1753160198817,11.2239724,195.57,195.55,0.03]
[1753160199202,0.69,195.56,195.55,0.03]
[1753160199435,11.9139724,195.56,195.55,0.03]
[1753160200028,11.9139724,195.56,195.51,0.03]
[1753160200225,11.2239724,195.53,195.51,0.03]
[1753160200708,11.9139724,195.53,195.51,0.03]
[1753160200928,11.2239724,195.54,195.51,0.03]
[1753160201109,0.69,195.56,195.51,0.03]
[1753160201310,11.2239724,195.53,195.51,0.03]
[1753160201706,11.2239724,195.52,195.51,0.03]
[1753160202414,11.2239724,195.53,195.51,0.03]
[1753160202622,11.2239724,195.52,195.51,0.03]
[1753160202841,11.9139724,195.52,195.51,0.03]
[1753160203408,11.9139724,195.52,195.44,39.58]
[1753160203613,11.2239724,195.46,195.43,5.11692165]
[1753160204220,11.2239724,195.44,195.42,0.2]
[1753160204419,11.2239724,195.43,195.42,0.2]
[1753160204621,11.9139724,195.43,195.42,0.2]
[1753160204832,11.9139724,195.43,195.31,39.58]
[1753160204833,11.9139724,195.43,195.32,5.11980339]
[1753160205044,11.2239724,195.35,195.32,5.11980339]
[1753160205243,0.69,195.42,195.32,5.11980339]
[1753160205445,11.2239724,195.36,195.32,5.11980339]
[1753160206234,11.2239724,195.35,195.32,5.11980339]
[1753160207918,0.69,195.43,195.35,5.11901714]
[1753160208248,11.2239724,195.39,195.35,5.11901714]
[1753160209446,11.2239724,195.45,195.38,11.2239724]
[1753160209627,11.2239724,195.45,195.4,11.2239724]
[1753160209818,11.2239724,195.41,195.35,58.18656001]
[1753160210142,11.2239724,195.36,195.35,44.71901714]
[1753160210350,11.2239724,195.36,195.35,5.11901714]
[1753160210522,11.2239724,195.37,195.35,5.11901714]
[1753160210913,11.2239724,195.36,195.32,5.14961437]
[1753160211145,11.2239724,195.35,195.32,5.14961437]
[1753160211324,11.2239724,195.34,195.32,5.14961437]
[1753160211953,11.2239724,195.33,195.32,0.03]
[1753160212240,11.9139724,195.33,195.32,0.03]
[1753160213325,17.03351368,195.33,195.32,0.03]
[1753160213525,11.9139724,195.33,195.32,0.03]
[1753160213939,11.2239724,195.34,195.32,0.03]
[1753160214243,11.2239724,195.33,195.32,0.03]
[1753160214446,0.69,195.37,195.32,0.03]
[1753160214630,11.2239724,195.37,195.32,0.03]
[1753160214818,11.2239724,195.39,195.33,11.2239724]
[1753160215022,11.2239724,195.4,195.33,0.67]
[1753160215228,11.2239724,195.4,195.34,11.2239724]
[1753160215544,11.2239724,195.35,195.32,0.03]
[1753160215847,0.69,195.39,195.32,0.03]
[1753160215848,11.2239724,195.33,195.32,0.03]
[1753160216041,12.85295875,195.42,195.32,0.03]
[1753160216042,11.2239724,195.37,195.32,0.03]
[1753160216348,11.2239724,195.39,195.33,11.2239724]
[1753160216557,11.2239724,195.36,195.32,0.03]
[1753160216851,0.06,195.42,195.32,0.03]
[1753160217025,11.2239724,195.38,195.33,0.67]
[1753160217350,11.2239724,195.39,195.33,11.8939724]
[1753160217945,0.75,195.42,195.34,5.1192792]
[1753160218127,11.2239724,195.39,195.34,5.1192792]
[1753160218324,11.2239724,195.4,195.34,29.14144961]
[1753160218555,11.2239724,195.38,195.34,5.1192792]
[1753160218842,11.2239724,195.39,195.34,5.7892792]
[1753160219039,11.2239724,195.4,195.34,29.14144961]
[1753160219722,0.06,195.42,195.35,11.2239724]
[1753160220034,0.06,195.42,195.38,5.11823113]
[1753160220035,11.2839724,195.42,195.38,5.11823113]
[1753160220352,11.2239724,195.39,195.36,5.11873833]
[1753160220650,11.2239724,195.37,195.36,5.11873833]
[1753160220824,11.2239724,195.38,195.32,11.2539724]
[1753160221024,11.2239724,195.38,195.32,0.03]
[1753160221231,11.2239724,195.33,195.32,0.03]
[1753160221450,11.9139724,195.33,195.32,0.03]
[1753160221748,11.9139724,195.33,195.3,0.03]
[1753160221932,11.9139724,195.33,195.24,0.03]
[1753160221933,26.0,195.27,195.24,0.03]
[1753160222143,26.0,195.22,195.14,0.03]
[1753160222342,11.2239724,195.15,195.05,5.12665151]
[1753160222639,11.2239724,195.12,195.02,5.12748704]
[1753160222840,11.2239724,195.12,195.0,8.3604]
[1753160222841,26.0,195.09,195.0,2.0]
[1753160223030,11.2239724,195.12,195.0,2.0]
[1753160223031,11.2239724,195.01,195.0,2.0]
[1753160223534,11.2239724,195.02,195.0,2.0]
[1753160223839,0.69,195.06,195.0,2.0]
[1753160224042,11.2239724,195.05,195.01,5.7978453]
[1753160224224,0.69,195.1,195.01,5.7978453]
[1753160224425,5.81582808,195.1,195.01,0.67]
[1753160224636,11.2239724,195.02,195.0,2.0]
[1753160224852,11.9139724,195.01,195.0,2.0]
[1753160225054,11.9139724,195.01,195.0,0.71]
[1753160225055,26.0,195.01,195.0,0.71]
[1753160225256,11.2239724,195.01,195.0,0.71]
[1753160225442,16.78468397,195.01,195.0,0.71]
[1753160225643,11.2239724,195.01,195.0,0.71]
[1753160225839,26.0,195.07,195.0,0.71]
[1753160226157,16.35191455,195.01,195.0,0.71]
[1753160226654,26.0,195.06,195.0,0.71]
[1753160226853,11.2239724,195.01,195.0,0.71]
[1753160227151,11.2239724,195.16,195.0,0.71]
[1753160227152,25.62225293,195.15,195.0,0.71]
[1753160227350,44.8958896,195.3,195.0,0.71]
[1753160227351,7.9544,195.37,195.14,10.0]
[1753160227528,40.26,195.36,195.2,10.0]
[1753160227729,40.5,195.35,195.21,10.0]
[1753160227930,11.2239724,195.29,195.23,5.1221636]
[1753160228147,40.52,195.28,195.25,10.0]
[1753160228353,6.441,195.37,195.3,10.0]
[1753160228655,11.2239724,195.36,195.3,10.0]
[1753160228959,17.97016586,195.42,195.21,5.12248835]
[1753160229139,17.97016586,195.42,195.25,10.0]
[1753160229344,0.06,195.42,195.29,11.2239724]
[1753160229552,0.06,195.42,195.33,10.0]
[1753160229553,11.2239724,195.38,195.33,10.0]
[1753160229732,40.54,195.37,195.34,10.0]
[1753160230063,40.52,195.39,195.37,15.11841782]
[1753160230362,51.7439724,195.39,195.35,10.0]
[1753160230555,11.2239724,195.37,195.33,15.11947658]
[1753160231061,40.52,195.39,195.28,5.1208521]
[1753160231366,11.2239724,195.33,195.29,10.0]
[1753160231859,0.06,195.42,195.32,11.2239724]
[1753160232154,11.2239724,195.33,195.25,10.0]
[1753160232345,11.2239724,195.31,195.28,10.0]
[1753160232546,40.54,195.3,195.25,10.0]
[1753160232755,11.2239724,195.27,195.22,10.69]
[1753160232948,40.54,195.3,195.21,10.0]
[1753160233162,40.5,195.29,195.24,10.0]
[1753160233463,40.5,195.28,195.24,10.0]
[1753160233660,11.2239724,195.27,195.24,10.0]
[1753160233864,11.2239724,195.26,195.21,10.0]
[1753160234235,11.2239724,195.23,195.19,10.0]
[1753160234555,11.2239724,195.21,195.19,10.0]
[1753160234784,40.48,195.2,195.19,10.0]
[1753160234953,40.46,195.2,195.19,10.0]
[1753160235257,40.46,195.23,195.21,10.0]
[1753160235555,11.2239724,195.27,195.22,10.69]
[1753160235769,40.46,195.24,195.22,10.69]
[1753160235935,11.2239724,195.27,195.22,10.69]
[1753160236131,11.2239724,195.27,195.23,10.0]
[1753160236333,40.42,195.26,195.24,0.69]
[1753160236647,11.2239724,195.31,195.25,0.69]
[1753160236864,11.2239724,195.35,195.28,11.2239724]
[1753160237062,40.42,195.34,195.28,21.2239724]
[1753160237366,11.2239724,195.38,195.33,10.0]
[1753160237582,40.4,195.37,195.34,0.69]
[1753160237768,11.2239724,195.35,195.3,10.0]
[1753160237952,26.0,195.34,195.26,10.0]
[1753160238148,11.2239724,195.28,195.26,10.0]
[1753160238363,26.0,195.36,195.23,10.0]
[1753160238364,11.2239724,195.29,195.23,10.0]
[1753160238673,40.4,195.3,195.27,10.0]
[1753160238860,51.6239724,195.3,195.27,10.0]
[1753160239063,11.2239724,195.29,195.25,10.0]
[1753160239263,11.2239724,195.28,195.24,10.69]
[1753160239785,11.2239724,195.26,195.23,10.0]
[1753160240151,40.36,195.25,195.2,10.69]
[1753160240454,5.1192792,195.34,195.25,10.0]
[1753160240655,40.36,195.33,195.26,10.0]
[1753160240879,40.36,195.33,195.22,11.2239724]
[1753160240880,11.2239724,195.27,195.22,10.0]
[1753160241056,11.2239724,195.24,195.21,10.0]
[1753160241580,11.2239724,195.22,195.17,10.0]
[1753160241752,40.32,195.26,195.17,10.0]
[1753160241753,11.2239724,195.2,195.17,10.0]
[1753160242071,40.32,195.26,195.14,11.2239724]
[1753160242072,11.2239724,195.21,195.18,10.0]
[1753160242253,11.2239724,195.21,195.14,16.3484833]
[1753160242254,11.2239724,195.21,195.17,10.69]
[1753160242450,11.2239724,195.18,195.13,10.0]
[1753160242764,11.2239724,195.16,195.13,10.69]
[1753160242949,51.5039724,195.16,195.13,0.69]
[1753160243152,17.92573623,195.25,195.13,0.69]
[1753160243366,11.2239724,195.17,195.13,10.69]
[1753160243574,40.32,195.16,195.15,10.0]
[1753160243849,40.32,195.16,195.13,0.69]
[1753160244049,12.80409731,195.25,195.15,10.0]
[1753160244277,11.2239724,195.2,195.16,10.0]
[1753160244457,11.2239724,195.2,195.16,10.69]
[1753160244654,11.2239724,195.21,195.17,0.69]
[1753160244852,40.28,195.2,195.18,10.69]
[1753160245058,51.5039724,195.2,195.18,10.0]
[1753160245260,11.2239724,195.19,195.17,10.0]
[1753160245784,40.26,195.19,195.18,10.0]
[1753160245971,5.12137662,195.26,195.18,0.69]
[1753160246178,11.2239724,195.21,195.19,10.0]
[1753160246573,1.5284,195.4,195.2,11.9139724]
[1753160246779,11.2239724,195.31,195.26,10.0]
[1753160247081,11.2239724,195.27,195.23,10.0]
[1753160247281,40.22,195.26,195.21,10.69]
[1753160247497,40.24,195.26,195.23,21.9139724]
[1753160247785,40.24,195.26,195.22,10.0]
[1753160247965,11.2239724,195.24,195.2,10.69]
[1753160248591,11.2239724,195.24,195.2,10.0]
[1753160248881,16.34604556,195.24,195.2,10.69]